bitfinex-derivatives/quotes_ETHF0:USTF0_20250624
["timestamp","ask_amount","ask_price","bid_price","bid_amount"]
[1750726020962,2.7194,2402.5,2401.7,54.826]
[1750726020963,3.2078,2402.2,2401.7,54.826]
[1750726021157,3.2078,2401.9,2401.4,1.3729]
[1750726021355,3.2078,2401.9,2401.6,6.863]
[1750726021356,0.83215,2401.7,2401.6,6.863]
[1750726021855,0.83219,2401.5,2401.4,8.2359]
[1750726022061,0.83217,2401.6,2401.4,8.2359]
[1750726022759,0.7111,2401.8,2401.4,13.73520154]
[1750726022760,0.83212,2401.8,2401.4,13.73520154]
[1750726023659,0.7204,2402.2,2401.7,0.83212]
[1750726023660,0.83203,2402.0,2401.7,0.83212]
[1750726023864,0.832,2402.1,2401.8,8.2433]
[1750726024060,0.6868,2402.5,2401.8,8.2433]
[1750726024061,0.83192,2402.3,2401.8,8.2433]
[1750726024363,0.83192,2402.3,2402.0,0.83201]
[1750726024559,0.83192,2402.3,2402.1,1.3793]
[1750726024762,1.51866,2402.5,2402.2,0.83192]
[1750726025058,4.03962,2402.6,2402.2,7.68393]
[1750726025258,4.03963,2402.6,2402.3,2.20309]
[1750726025561,2.8263,2402.9,2402.3,2.20309]
[1750726025562,6.0341,2402.9,2402.3,1.3712]
[1750726025956,4.604,2402.9,2402.3,6.03830154]
[1750726026163,3.8836,2402.9,2402.4,0.6806]
[1750726026365,4.71533,2402.9,2402.6,0.8318]
[1750726026557,4.71533,2402.9,2402.6,7.6838]
[1750726026759,4.71533,2402.9,2402.6,8.2232]
[1750726027262,1.50753,2402.9,2402.6,8.2232]
[1750726027465,1.50752,2402.9,2402.6,9.05498]
[1750726028061,0.6758,2402.9,2402.6,9.05498]
[1750726028360,0.6758,2402.9,2402.7,0.83177]
[1750726028561,0.83165,2403.1,2402.8,0.83174]
[1750726029266,0.83165,2403.1,2402.9,1.423]
[1750726029468,3.8962,2403.2,2402.9,1.423]
[1750726029663,0.83169,2403.0,2402.7,0.83175]
[1750726029863,0.83169,2403.0,2402.7,2.25475]
[1750726030263,0.83165,2403.1,2402.8,0.83173]
[1750726030466,0.83167,2403.0,2402.8,1.423]
[1750726030668,0.8317,2402.9,2402.8,1.423]
[1750726031069,0.83172,2402.9,2402.6,7.68378]
[1750726031264,0.83172,2402.9,2402.6,9.03528]
[1750726031465,3.8962,2403.2,2402.6,8.2035]
[1750726031865,0.83165,2403.1,2402.8,0.83173]
[1750726032565,0.7183,2403.5,2403.1,0.83164]
[1750726032566,3.9261,2403.5,2403.1,0.83164]
[1750726032767,0.83157,2403.3,2403.1,6.852]
[1750726032969,0.83155,2403.4,2403.1,7.68363]
[1750726033168,0.83155,2403.4,2403.1,9.03513]
[1750726033563,3.9261,2403.5,2403.1,11.4113]
[1750726033768,4.7576,2403.5,2403.2,0.83158]
[1750726034567,3.9261,2403.5,2403.3,0.83156]
[1750726034971,0.7183,2403.5,2403.1,11.4113]
[1750726035171,0.7183,2403.5,2403.4,0.83153]
[1750726035469,0.83157,2403.3,2403.2,0.6951]
[1750726035670,0.83157,2403.3,2403.2,6.851]
[1750726036065,3.9261,2403.5,2403.2,6.851]
[1750726036271,0.83153,2403.4,2403.2,6.851]
[1750726037475,4.75763,2403.5,2403.2,6.851]
[1750726037677,4.75763,2403.5,2403.3,0.83156]
[1750726037678,3.9261,2403.5,2403.3,0.83156]
[1750726037871,0.7183,2403.5,2403.3,1.3701]
[1750726038074,0.83153,2403.4,2403.3,1.3701]
[1750726038377,0.7183,2403.5,2403.3,1.3701]
[1750726038672,0.83153,2403.4,2403.3,1.3701]
[1750726039375,0.7183,2403.5,2403.3,2.20164]
[1750726039678,1.5498,2403.5,2403.3,1.3701]
[1750726040276,0.83153,2403.4,2403.3,1.3701]
[1750726040673,0.7183,2403.5,2403.3,2.20165]
[1750726040972,0.83145,2403.7,2403.4,0.8315]
[1750726041282,0.83141,2403.8,2403.5,2.27129]
[1750726041476,0.83141,2403.8,2403.5,2.97169]
[1750726041778,0.83143,2403.7,2403.6,6.85]
[1750726042180,3.2078,2403.8,2403.6,6.85]
[1750726042181,0.83141,2403.8,2403.6,6.85]
[1750726042375,0.83143,2403.7,2403.6,8.2898]
[1750726043375,4.5698,2404.1,2403.6,8.2898]
[1750726043584,0.83137,2403.9,2403.6,13.78835154]
[1750726043771,0.83142,2403.8,2403.6,12.95690154]
[1750726043971,3.2078,2403.8,2403.5,6.85]
[1750726044174,3.09586888,2403.7,2403.0,3.2078]
[1750726044377,0.83164,2403.1,2403.0,10.0578]
[1750726044573,0.83164,2403.1,2403.0,3.2078]
[1750726049486,0.83164,2403.1,2402.6,4.6115]
[1750726049487,3.2078,2403.1,2402.6,4.6115]
[1750726049683,0.83175,2402.8,2402.7,1.3798]
[1750726049986,0.83175,2402.8,2402.6,4.6115]
[1750726050387,0.6586,2403.0,2402.7,1.3798]
[1750726050683,0.6586,2403.0,2402.6,4.6115]
[1750726050887,0.83177,2402.7,2402.6,3.2078]
[1750726051088,0.83184,2402.6,2402.4,6.85]
[1750726051286,0.83184,2402.6,2402.4,8.2298]
[1750726051491,3.2078,2402.8,2402.4,8.2298]
[1750726051683,0.83181,2402.7,2402.4,9.06167]
[1750726051890,0.83183,2402.6,2402.4,8.2298]
[1750726052392,0.83191,2402.3,2402.2,0.6593]
[1750726052693,0.83202,2402.0,2401.9,11.3868]
[1750726052889,0.83202,2402.0,2401.9,3.2078]
[1750726053090,0.83209,2401.8,2401.7,6.851]
[1750726054092,0.83219,2401.5,2401.2,6.851]
[1750726054499,0.83219,2401.5,2401.2,7.68329]
[1750726054699,0.83212,2401.7,2401.3,2.16126]
[1750726054998,0.83215,2401.6,2401.3,1.329]
[1750726055196,3.2078,2401.4,2400.7,6.84]
[1750726055395,0.83241,2400.9,2400.7,8.169]
[1750726056399,0.83235,2401.1,2400.7,9.00147]
[1750726056701,0.83237,2401.0,2400.7,8.169]
[1750726057207,0.83241,2400.9,2400.7,8.169]
[1750726057394,0.83243,2400.8,2400.7,8.169]
[1750726057796,4.04018,2401.0,2400.7,8.169]
[1750726058295,0.83238,2401.0,2400.7,8.169]
[1750726058504,0.83235,2401.1,2400.7,8.169]
[1750726058998,4.04017,2401.0,2400.7,8.169]
[1750726059395,3.2078,2401.0,2400.7,8.169]
[1750726059699,3.2078,2401.0,2400.3,3.2078]
[1750726059894,2.45078467,2402.1,2400.9,12.54200308]
[1750726060092,0.83169,2403.0,2402.0,4.66710154]
[1750726060299,0.83169,2403.0,2402.4,4.03966]
[1750726060300,0.83168,2403.0,2402.4,4.03966]
[1750726060491,2.16842,2402.9,2402.4,3.2078]
[1750726060692,1.3367,2402.9,2402.4,3.2078]
[1750726061200,1.3367,2402.9,2402.7,3.2078]
[1750726061601,7.435,2402.8,2402.4,3.2078]
[1750726061899,1.3568,2402.7,2402.4,3.2078]
[1750726062200,1.3568,2402.7,2401.1,7.435]
[1750726062201,7.87490154,2402.6,2401.7,0.8321]
[1750726062396,3.2078,2402.1,2401.7,0.8321]
[1750726062601,3.2078,2402.1,2401.4,3.2078]
[1750726062602,1.3568,2402.0,2401.6,0.83214]
[1750726062999,5.35520154,2402.6,2402.0,0.832]
[1750726063000,3.2078,2402.4,2402.0,0.832]
[1750726063200,1.3568,2402.5,2402.2,3.2078]
[1750726063392,1.3568,2402.5,2401.7,4.66710154]
[1750726063393,0.83192,2402.3,2401.9,3.2078]
[1750726063591,2.18875,2402.2,2401.9,3.2078]
[1750726063798,3.2078,2402.1,2401.6,3.2078]
[1750726063992,0.83205,2401.9,2401.4,0.8322]
[1750726064198,0.83205,2401.9,2401.4,0.83222]
[1750726064605,2.18885,2401.9,2401.4,0.83222]
[1750726065107,0.83209,2401.8,2401.3,12.88754]
[1750726065401,0.8321,2401.8,2401.3,12.88756]
[1750726065705,2.18887,2401.9,2401.4,0.83222]
[1750726065905,0.83209,2401.8,2401.4,0.83222]
[1750726066101,0.83213,2401.7,2401.3,12.0553]
[1750726066305,2.18887,2401.9,2401.3,12.0553]
[1750726066606,2.18887,2401.9,2401.4,0.8322]
[1750726066808,7.435,2402.1,2401.7,4.0399]
[1750726067007,7.435,2402.1,2401.7,3.2078]
[1750726067008,8.26701,2402.1,2401.7,3.2078]
[1750726067207,3.2078,2402.2,2401.7,3.2078]
[1750726067407,10.6428,2402.2,2401.7,3.2078]
[1750726067907,11.47477,2402.2,2401.7,4.0399]
[1750726068108,0.83198,2402.1,2401.7,4.0399]
[1750726068609,11.47478,2402.2,2401.7,4.0399]
[1750726068803,2.0732,2402.4,2401.7,3.2078]
[1750726069010,7.436,2402.3,2401.9,0.83203]
[1750726069209,7.436,2402.3,2401.9,2.27493]
[1750726069409,7.436,2402.3,2401.9,1.4429]
[1750726069609,0.83195,2402.2,2401.9,1.4429]
[1750726070009,8.26793,2402.3,2401.9,2.27495]
[1750726070307,8.26793,2402.3,2401.9,1.4429]
[1750726070609,0.83196,2402.2,2401.9,1.4429]
[1750726071208,11.9638,2402.3,2401.8,0.6808]
[1750726071712,0.83205,2401.9,2401.7,3.2078]
[1750726072613,0.83209,2401.8,2401.7,3.2078]
[1750726073006,0.83207,2401.9,2401.7,3.2078]
[1750726073209,0.83209,2401.8,2401.7,3.2078]
[1750726073508,0.83209,2401.8,2400.6,2.08119]
[1750726073509,2.0804,2401.6,2400.6,0.6668]
[1750726073707,3.2078,2401.3,2400.6,2.95579]
[1750726073907,0.83237,2401.0,2400.6,2.95579]
[1750726074307,0.83237,2401.0,2400.7,0.83247]
[1750726074508,0.8324,2400.9,2400.6,2.1233]
[1750726075608,1.3647,2401.2,2400.6,2.1233]
[1750726075609,3.2078,2401.0,2400.6,2.1233]
[1750726075808,3.2078,2400.7,2400.3,0.6854]
[1750726076016,3.2078,2400.7,2400.1,4.66710154]
[1750726076215,0.83254,2400.5,2400.2,1.3728]
[1750726076711,7.436,2400.8,2399.9,41.4722]
[1750726076712,3.2078,2400.3,2399.9,41.4722]
[1750726076913,3.2078,2400.3,2399.7,3.2078]
[1750726076914,10.6438,2400.3,2399.7,3.2078]
[1750726077120,0.83277,2399.9,2399.7,3.2078]
[1750726077419,0.83269,2400.1,2399.7,3.2078]
[1750726077618,0.83271,2400.0,2399.7,3.2078]
[1750726077809,7.87490154,2400.0,2399.4,3.2078]
[1750726078009,3.2078,2399.5,2398.7,4.66710154]
[1750726078213,3.2078,2399.3,2398.9,3.2078]
[1750726078416,3.2078,2399.7,2398.9,4.04087]
[1750726078617,4.5325,2399.6,2398.8,2.92812]
[1750726078916,3.2078,2399.1,2397.9,0.32585302]
[1750726079121,3.2078,2398.8,2397.9,1.74865302]
[1750726079420,3.2078,2398.8,2398.2,3.2078]
[1750726079614,3.2078,2398.7,2397.9,1.4228]
[1750726079817,10.84439,2399.0,2397.8,0.6857]
[1750726079818,0.83332,2398.3,2397.8,0.6857]
[1750726080115,3.2078,2398.4,2397.8,2.0467]
[1750726080320,3.2078,2398.1,2397.6,3.2078]
[1750726080514,3.2078,2398.2,2397.7,1.361]
[1750726080709,4.04105,2398.5,2397.7,1.361]
[1750726080912,3.2078,2398.5,2398.4,0.83327]
[1750726081113,3.2078,2398.8,2398.5,0.83322]
[1750726081316,3.2078,2398.8,2398.3,7.44]
[1750726081509,0.83319,2398.7,2397.8,44.0078]
[1750726081715,3.2078,2398.8,2398.3,0.83329]
[1750726081915,3.2078,2398.8,2398.4,1.361]
[1750726081916,4.04093,2398.8,2398.4,1.361]
[1750726082121,4.04093,2398.8,2398.1,3.2078]
[1750726082122,4.04093,2398.8,2398.2,0.83331]
[1750726082319,1.3594,2398.7,2398.1,7.44]
[1750726082524,3.2078,2398.8,2398.1,7.44]
[1750726082525,4.04094,2398.8,2398.2,0.83331]
[1750726082718,0.83318,2398.7,2398.1,8.27334]
[1750726082912,5.40035,2398.8,2398.2,1.361]
[1750726083114,5.40035,2398.8,2398.3,7.44]
[1750726083115,0.83318,2398.7,2398.3,7.44]
[1750726083313,4.5672,2398.8,2398.3,8.8711]
[1750726083516,0.83316,2398.7,2398.3,8.8711]
[1750726083818,3.2078,2398.8,2398.3,8.8711]
[1750726084017,0.83304,2399.1,2398.5,0.8332]
[1750726084224,3.2078,2398.9,2398.3,12.0789]
[1750726084725,3.2078,2399.2,2398.3,4.6389]
[1750726084920,1.4347,2399.1,2398.4,7.442]
[1750726085224,0.83307,2399.0,2398.5,9.70631]
[1750726085521,0.83307,2399.0,2398.6,0.8332]
[1750726085722,1.4347,2399.1,2398.5,8.27521]
[1750726085933,0.83311,2398.9,2398.5,8.27521]
[1750726086225,3.2078,2398.8,2398.3,4.6389]
[1750726086424,3.2078,2398.8,2398.4,7.443]
[1750726086625,3.2078,2398.8,2398.4,8.27626]
[1750726086822,0.83311,2398.9,2398.4,9.67106]
[1750726087024,3.2078,2398.8,2398.4,9.67106]
[1750726087226,4.04093,2398.8,2398.4,8.8378]
[1750726087525,3.2078,2398.8,2398.4,8.8378]
[1750726087920,0.83308,2399.0,2398.6,0.83318]
[1750726088224,0.83308,2399.0,2398.7,1.3948]
[1750726088625,0.83313,2398.8,2398.7,1.3948]
[1750726088927,0.83306,2399.0,2398.7,1.3948]
[1750726089122,0.8331,2398.9,2398.7,1.3948]
[1750726089520,0.83308,2399.0,2398.7,1.3948]
[1750726089820,3.2078,2399.1,2399.0,0.83306]
[1750726090015,4.5586,2399.4,2398.8,7.444]
[1750726090214,0.83297,2399.3,2398.9,2.21789]
[1750726090622,3.2078,2399.4,2398.9,1.3848]
[1750726090818,0.83297,2399.3,2398.9,1.3848]
[1750726091015,0.83297,2399.3,2398.9,2.21788]
[1750726091219,0.83299,2399.2,2398.9,2.21788]
[1750726091420,3.2078,2399.4,2398.9,1.3848]
[1750726091622,0.833,2399.2,2398.9,2.21788]
[1750726091823,0.83297,2399.3,2398.9,2.21788]
[1750726092128,3.2078,2399.4,2398.9,4.5926]
[1750726092421,3.8804,2400.0,2399.2,3.2078]
[1750726092614,3.2078,2400.0,2399.5,3.2078]
[1750726092819,3.2078,2400.0,2399.3,1.3185]
[1750726092820,0.83288,2399.5,2399.3,8.8265]
[1750726093019,0.83292,2399.4,2399.3,7.508]
[1750726093226,5.28995,2399.6,2398.9,1.3185]
[1750726093423,5.28995,2399.6,2398.1,2.08341]
[1750726093424,0.83324,2398.5,2398.2,7.508]
[1750726093621,3.2078,2398.9,2398.1,3.2078]
[1750726093922,0.83313,2398.8,2398.4,4.04104]
[1750726094126,0.83313,2398.8,2398.5,8.8265]
[1750726094328,3.2078,2399.0,2398.5,8.8265]
[1750726094525,4.04088,2399.0,2398.6,0.83318]
[1750726094824,1.3878,2399.3,2398.7,4.5263]
[1750726094825,3.2078,2399.3,2398.7,4.5263]
[1750726095126,0.83302,2399.2,2398.8,0.83313]
[1750726095325,0.83303,2399.1,2398.9,1.3698]
[1750726095527,3.2078,2399.3,2398.9,8.8788]
[1750726095724,0.83299,2399.2,2398.9,8.8788]
[1750726095925,0.83303,2399.1,2398.9,8.8788]
[1750726096125,0.833,2399.2,2398.9,9.71186]
[1750726096326,0.83303,2399.1,2398.9,8.8788]
[1750726096527,4.04077,2399.3,2399.0,0.83304]
[1750726096829,0.83302,2399.1,2399.0,0.6835]
[1750726097326,3.2078,2399.3,2398.7,3.2078]
[1750726097522,3.2078,2399.3,2398.8,7.509]
[1750726097523,0.83309,2398.9,2398.8,7.509]
[1750726097728,0.83307,2399.0,2398.8,7.509]
[1750726098230,0.83309,2398.9,2398.8,7.509]
[1750726098420,1.3503,2399.2,2398.8,7.509]
[1750726098824,0.83309,2398.9,2398.8,7.509]
[1750726099025,0.83309,2398.9,2398.7,10.7168]
[1750726099228,0.83308,2399.0,2398.7,10.7168]
[1750726099623,3.2078,2399.0,2398.6,2.0713]
[1750726099822,3.2078,2399.0,2398.4,11.4003]
[1750726099823,0.8332,2398.6,2398.4,11.4003]
[1750726100029,0.83323,2398.5,2398.4,11.4003]
[1750726100221,3.2078,2398.7,2398.0,3.2078]
[1750726100425,0.83328,2398.4,2398.1,1.4126]
[1750726100628,0.8333,2398.3,2398.1,1.4126]
[1750726100828,0.83334,2398.2,2398.1,1.4126]
[1750726101027,3.2078,2398.4,2398.1,1.4126]
[1750726101231,0.83334,2398.2,2398.1,1.4126]
[1750726101428,0.83331,2398.3,2398.0,10.7168]
[1750726101623,1.3974,2398.6,2398.0,10.7168]
[1750726101926,0.83334,2398.2,2398.0,12.0883]
[1750726102127,1.3974,2398.6,2398.0,12.0883]
[1750726102321,3.2078,2399.0,2398.4,4.68161482]
[1750726102526,3.2078,2399.0,2398.4,12.19061482]
[1750726102727,4.5953,2399.0,2398.4,12.19061482]
[1750726103026,0.83323,2398.6,2398.4,12.19061482]
[1750726103228,0.83325,2398.5,2398.1,0.83335]
[1750726103429,2.08275,2398.9,2398.2,1.3715]
[1750726103430,3.2078,2398.9,2398.2,1.3715]
[1750726103628,0.83324,2398.5,2398.2,1.3715]
[1750726103823,4.0411,2398.3,2398.2,1.3715]
[1750726104034,3.2078,2398.3,2397.8,0.6993]
[1750726104244,1.429,2398.2,2397.8,0.6993]
[1750726104430,0.83343,2398.0,2397.8,0.6993]
[1750726104838,0.83342,2398.0,2397.8,0.6993]
[1750726105133,3.2078,2398.3,2397.8,0.6993]
[1750726105134,3.2078,2398.3,2397.8,4.68161482]
[1750726105434,0.83344,2397.9,2397.8,4.68161482]
[1750726105832,0.83347,2397.8,2397.7,3.2078]
[1750726106036,3.2078,2398.3,2397.7,3.2078]
[1750726106234,1.00346493,2398.2,2397.6,61.53091482]
[1750726106441,0.83346,2397.9,2397.6,62.36445482]
[1750726106744,2.26236,2398.2,2397.7,3.2078]
[1750726106941,0.83328,2398.4,2398.0,4.04118]
[1750726107140,0.83332,2398.3,2398.0,0.83338]
[1750726107329,3.8905,2398.6,2398.0,0.83338]
[1750726107537,0.83328,2398.4,2398.0,1.3682]
[1750726107737,0.83328,2398.4,2398.1,0.83336]
[1750726107939,0.83322,2398.6,2398.2,4.68161482]
[1750726108141,1.00504968,2398.5,2398.3,1.3682]
[1750726108442,0.83323,2398.5,2398.3,1.3682]
[1750726108844,3.2078,2398.9,2398.2,5.51493482]
[1750726109039,1.00561883,2398.8,2398.2,6.04981482]
[1750726109241,1.00561883,2398.8,2398.5,0.83321]
[1750726109242,0.83313,2398.8,2398.5,0.83321]
[1750726109641,3.2078,2398.9,2398.5,4.68161482]
[1750726109842,4.04092,2398.9,2398.5,12.19161482]
[1750726110047,3.2078,2398.9,2398.7,0.83314]
[1750726110934,2.8499,2399.2,2398.6,1.4346]
[1750726110935,6.0577,2399.2,2398.6,1.4346]
[1750726111141,0.83311,2398.9,2398.6,2.26779]
[1750726111347,0.83326,2398.5,2398.3,10.7178]
[1750726111545,0.83334,2398.2,2398.1,2.8386]
[1750726111847,0.83322,2398.6,2398.3,0.8333]
[1750726112037,4.5451,2398.8,2398.1,2.8386]
[1750726112244,1.00533797,2398.7,2398.1,2.8386]
[1750726112445,0.83331,2398.3,2398.1,2.8386]
[1750726112839,3.2078,2398.5,2398.1,1.404]
[1750726113047,0.83323,2398.6,2398.2,0.83332]
[1750726113247,0.83325,2398.5,2398.2,0.83332]
[1750726113444,0.83325,2398.5,2397.9,10.7178]
[1750726113445,3.2078,2398.6,2397.9,3.2078]
[1750726113644,0.83328,2398.4,2398.1,0.83336]
[1750726113838,0.83336,2398.2,2397.9,3.2078]
[1750726114038,0.83341,2398.0,2397.9,3.2078]
[1750726114441,0.83339,2398.1,2397.9,3.2078]
[1750726115146,0.83341,2398.0,2397.9,3.2078]
[1750726115952,0.83328,2398.4,2398.0,0.83337]
[1750726116340,0.8333,2398.3,2398.0,2.15487]
[1750726116555,0.83329,2398.4,2398.0,2.15487]
[1750726116743,3.2078,2398.8,2398.2,0.8333]
[1750726116939,0.83325,2398.5,2398.2,0.8333]
[1750726117143,0.83327,2398.4,2398.2,0.8333]
[1750726117350,0.83329,2398.4,2398.1,0.83336]
[1750726117747,1.3733,2398.7,2398.3,0.83329]
[1750726117947,0.83315,2398.8,2398.5,0.83322]
[1750726118149,0.83311,2398.9,2398.5,3.2078]
[1750726118346,0.83311,2398.9,2398.6,0.83317]
[1750726118544,0.83314,2398.8,2398.6,1.3215]
[1750726118852,0.83316,2398.7,2398.6,1.3215]
[1750726119041,0.83316,2398.7,2398.5,8.72262482]
[1750726119250,1.3582,2399.0,2398.5,8.72262482]
[1750726119448,0.83315,2398.8,2398.5,8.72262482]
[1750726119750,0.83317,2398.7,2398.5,4.68161482]
[1750726120048,2.6788,2399.0,2398.4,0.6806]
[1750726120244,0.83315,2398.8,2398.5,0.83321]
[1750726120440,0.83315,2398.8,2398.5,2.22541]
[1750726120646,1.3582,2399.0,2398.5,4.6]
[1750726120845,0.83311,2398.9,2398.6,0.83318]
[1750726121347,1.50588,2399.0,2398.7,0.83316]
[1750726121547,3.2078,2399.1,2398.6,7.465]
[1750726121847,3.2078,2399.1,2398.8,0.83313]
[1750726122043,3.9031,2399.4,2398.8,3.2078]
[1750726122249,1.8375729,2399.3,2399.0,0.83306]
[1750726122451,0.83299,2399.2,2398.9,2.22527]
[1750726123149,0.83306,2399.0,2398.8,3.2078]
[1750726123553,1.3161,2399.3,2398.8,4.04091]
[1750726123945,0.83303,2399.1,2398.8,4.04091]
[1750726124146,0.833,2399.2,2398.9,0.83309]
[1750726124445,0.83333,2398.2,2397.8,4.15095513]
[1750726124647,3.2078,2398.2,2397.8,7.35875513]
[1750726124953,3.2078,2399.3,2398.1,15.6728]
[1750726125153,1.3161,2399.2,2398.5,3.2078]
[1750726125654,1.51647,2399.3,2398.9,4.04087]
[1750726125852,0.833,2399.2,2398.9,3.2078]
[1750726126056,1.51647,2399.3,2398.9,4.6008]
[1750726126256,0.6835,2399.3,2398.9,4.6008]
[1750726126456,1.51646,2399.3,2398.9,5.43386]
[1750726126656,4.5819,2399.6,2398.9,4.6008]
[1750726126854,4.5819,2399.6,2399.1,0.83302]
[1750726126855,3.2078,2399.6,2399.1,0.83302]
[1750726127046,0.83286,2399.6,2399.2,5.43377]
[1750726127252,2.7073,2399.9,2399.5,3.2078]
[1750726127456,3.62278928,2400.4,2399.6,0.83283]
[1750726127657,0.6578,2400.3,2400.0,3.2078]
[1750726128258,1.49041,2400.3,2400.0,3.2078]
[1750726128856,2.0383,2400.3,2400.0,3.2078]
[1750726129058,0.83267,2400.1,2399.9,7.465]
[1750726129260,2.0383,2400.3,2399.9,7.465]
[1750726129456,2.0383,2400.3,2400.0,3.2078]
[1750726129760,3.2078,2401.7,2400.1,4.68161482]
[1750726130062,0.83223,2401.4,2400.9,3.2078]
[1750726130251,0.83223,2401.4,2401.0,7.464]
[1750726130546,0.83228,2401.3,2401.0,7.464]
[1750726130750,1.3805,2401.6,2401.0,7.464]
[1750726130953,1.3805,2401.6,2401.2,3.2078]
[1750726131155,0.83209,2401.8,2401.3,0.83224]
[1750726131355,0.83213,2401.7,2401.4,7.462]
[1750726131954,4.5883,2402.0,2401.3,1.3465]
[1750726132259,4.5883,2402.0,2400.8,7.462]
[1750726132260,0.83239,2401.0,2400.8,7.462]
[1750726132557,0.83235,2401.1,2400.9,3.2078]
[1750726132958,0.83229,2401.2,2400.9,3.2078]
[1750726133158,0.83236,2401.1,2400.9,3.2078]
[1750726133358,3.2078,2401.8,2400.9,4.0402]
[1750726133562,0.83228,2401.3,2400.9,3.2078]
[1750726133861,4.5556,2401.6,2400.9,3.2078]
[1750726134063,0.83229,2401.3,2400.9,3.2078]
[1750726134356,4.5556,2401.6,2400.9,3.2078]
[1750726134758,0.83227,2401.3,2400.9,3.2078]
[1750726134958,0.8323,2401.2,2400.9,3.2078]
[1750726135160,0.83228,2401.3,2400.9,3.2078]
[1750726135358,0.8323,2401.2,2400.9,3.2078]
[1750726135660,0.7143,2401.5,2400.9,3.2078]
[1750726135661,0.83228,2401.3,2400.9,3.2078]
[1750726136262,0.83228,2401.3,2400.9,4.04019]
[1750726136465,1.3541,2401.4,2400.9,3.2078]
[1750726137260,0.83218,2401.6,2401.2,4.04007]
[1750726137562,4.5619,2401.9,2401.3,7.46]
[1750726137756,0.83217,2401.6,2401.3,7.46]
[1750726137956,0.83222,2401.4,2401.3,7.46]
[1750726138264,0.83221,2401.5,2401.3,7.46]
[1750726138463,9.76162584,2401.9,2401.3,7.46]
[1750726138658,3.2078,2401.5,2400.9,3.2078]
[1750726138860,3.2078,2401.9,2400.9,10.6678]
[1750726139164,0.83215,2401.7,2401.3,0.83224]
[1750726139664,0.83217,2401.6,2401.3,7.46]
[1750726140064,1.4099,2401.8,2401.3,7.46]
[1750726140264,0.83214,2401.7,2401.3,8.29226]
[1750726140666,0.83214,2401.7,2401.3,9.61316]
[1750726140962,3.2078,2401.9,2401.3,9.61316]
[1750726140963,3.2078,2401.9,2401.3,8.7809]
[1750726141154,0.6965,2402.0,2401.5,3.2078]
[1750726141360,3.2078,2402.6,2401.8,3.2078]
[1750726141554,0.83186,2402.5,2402.1,4.03977]
[1750726142465,0.83197,2402.2,2402.0,0.6667]
[1750726142666,4.6131,2402.6,2401.8,4.03987]
[1750726142667,4.6131,2402.6,2401.8,3.2078]
[1750726142870,3.2078,2402.3,2401.8,10.6668]
[1750726143166,0.83205,2401.9,2401.8,10.6668]
[1750726143362,0.83205,2401.9,2401.8,3.2078]
[1750726143863,0.83215,2401.6,2401.5,0.7021]
[1750726144068,0.83226,2401.3,2401.2,3.2078]
[1750726144267,0.83233,2401.1,2401.0,7.458]
[1750726144864,0.83243,2400.8,2400.7,51.1748]
[1750726145066,0.83243,2400.8,2400.7,3.2078]
[1750726145371,8.8669,2401.3,2400.7,3.2078]
[1750726145571,0.83238,2401.0,2400.7,3.2078]
[1750726145766,0.83242,2400.9,2400.7,3.2078]
[1750726146170,0.83243,2400.8,2400.7,3.2078]
[1750726146371,0.8324,2401.0,2400.7,3.2078]
[1750726146571,0.83235,2401.1,2400.7,3.2078]
[1750726146870,0.83235,2401.1,2400.7,4.5549]
[1750726147266,0.83231,2401.2,2400.8,8.29043]
[1750726147471,2.24118,2401.3,2400.9,0.83239]
[1750726147664,4.04005,2401.4,2400.9,0.83239]
[1750726147864,4.04005,2401.4,2400.9,2.28589]
[1750726148164,3.2078,2401.4,2400.9,1.4535]
[1750726148360,0.83236,2401.0,2400.5,0.83252]
[1750726148566,4.04014,2401.1,2400.7,0.83247]
[1750726149280,8.854,2401.4,2400.5,1.4535]
[1750726149469,2.08083,2401.1,2400.4,10.6658]
[1750726149769,0.83261,2400.3,2400.1,10.6658]
[1750726150071,0.83259,2400.4,2400.1,10.6658]
[1750726150272,0.83261,2400.3,2400.1,10.6658]
[1750726150469,2.1234,2400.8,2400.1,10.6658]
[1750726150765,2.1234,2400.8,2400.5,3.2078]
[1750726150972,0.83249,2400.7,2400.5,3.2078]
[1750726151568,2.95585,2400.8,2400.5,3.2078]
[1750726151767,0.83248,2400.7,2400.5,3.2078]
[1750726152068,0.83249,2400.7,2400.5,3.2078]
[1750726152273,0.83256,2400.5,2400.2,3.9158]
[1750726152463,0.7104,2400.8,2400.4,0.83257]
[1750726152768,3.2078,2401.6,2400.5,10.7728]
[1750726153068,0.83235,2401.1,2400.6,3.2078]
[1750726153267,0.83235,2401.1,2400.7,2.27745]
[1750726155266,1.3941,2400.7,2400.2,2.93892]
[1750726155461,1.3941,2400.7,2400.3,1.445]
[1750726155668,0.83254,2400.5,2400.2,0.6613]
[1750726155972,0.83261,2400.3,2400.2,0.6613]
[1750726156370,3.2078,2400.6,2400.1,3.2078]
[1750726156572,0.83255,2400.5,2400.1,4.04045]
[1750726156780,4.04033,2400.6,2400.2,0.83264]
[1750726157073,4.04032,2400.6,2400.2,0.83261]
[1750726157373,4.0403,2400.6,2400.2,0.83262]
[1750726157877,0.83254,2400.5,2400.1,4.04045]